Cogmind - Beta 13 @@@ ROGUE MODE // 2024.04.13 @ 01:46:04 Player: Mogwok Wargfriend Result: Self-destructed Performance ------------- Evolutions (1) 500 Regions Visited (2) 400 Robots Destroyed (34) 170 Value Destroyed (620) 620 Prototype IDs (2) 40 Alien Tech Used (0) 0 Bonus (0) 0 TOTAL SCORE: 1730 Bonus ------- None Cogmind --------- Core Integrity 183/400 Matter 293/300 Energy 265/265 System Corruption 0% Temperature Cool (0) Movement Hovering (116) Ox1 Location -9/Materials Parts ------- > --- POWER (1) -------- Improved Ion Engine > --- PROPULSION (2) --- Improved Hover Unit Improved Hover Unit > --- UTILITY (4) ------ Heat Sink Medium Storage Unit Structural Scanner Advanced Visual Processing Unit > --- WEAPON (2) ------- Particle Gun Light Cannon > --- INVENTORY (10) --- Light Ion Engine Light Treads Aluminum Leg Wheel Hover Unit Improved Hover Unit Small Laser Light Assault Rifle Light Assault Rifle Mining Laser Peak State ------------ > --- POWER ------------ Improved Ion Engine > --- PROPULSION ------- Improved Hover Unit Improved Hover Unit > --- UTILITY ---------- Heat Sink Medium Storage Unit Structural Scanner Advanced Visual Processing Unit > --- WEAPON ----------- Particle Gun Light Cannon > --- INVENTORY -------- Light Ion Engine Light Treads Aluminum Leg Wheel Hover Unit Improved Hover Unit Small Laser Light Assault Rifle Light Assault Rifle Mining Laser [Rating: 16] Favorites ----------- Power Ion Engine Engine Ion Engine Power Core Light Nuclear Core Propulsion Compact Wheel Treads Light Treads Wheel Compact Wheel Hover Unit Improved Hover Unit Utility Heat Sink Device Heat Sink Storage Small Storage Unit Processor Advanced Visual Processing Unit Weapon Medium Laser Energy Gun Medium Laser Ballistic Gun Light Assault Rifle Ballistic Cannon Light Cannon Build | -11 -10 -9 ------- Run | Yrd Mat Mat Slots Evolved 2 | . . 2 Power . | . . . Propulsion . | . . . Utility 2 | . . 2 Weapon . | . . . Parts Attached 29 | 7 5 17 Power 4 | 1 1 2 Engine 3 | 1 1 1 Core 1 | . . 1 Reactor . | . . . Propulsion 9 | 2 1 6 Treads 1 | . . 1 Leg . | . . . Wheel 5 | 2 1 2 Hover 3 | . . 3 Flight . | . . . Utility 10 | 2 1 7 Device 6 | 1 1 4 Storage 2 | 1 . 1 Processor 2 | . . 2 Hackware . | . . . Protection . | . . . Artifact . | . . . Weapon 6 | 2 2 2 Energy Gun 3 | 1 1 1 Energy Cannon . | . . . Ballistic Gun 2 | 1 1 . Ballistic Cannon 1 | . . 1 Launcher . | . . . Special Weapon . | . . . Impact Weapon . | . . . Slashing Weapon . | . . . Piercing Weapon . | . . . Special Melee Weapon . | . . . Unidentified Prototypes . | . . . Parts Lost 10 | . 2 8 Power 3 | . 1 2 Propulsion 3 | . . 3 Utility 2 | . 1 1 Weapon 2 | . . 2 Highest Loss Streak 8 | . 1 8 To Critical Strikes . | . . . Average Slot Usage (%) 93 | . 96 91 Engine 12 | . 14 10 Treads 1 | . . 2 Wheel 16 | . 28 8 Hover 5 | . . 10 Device 17 | . 10 23 Storage 12 | . 14 11 Processor 1 | . . 2 Energy Gun 12 | . 14 11 Ballistic Gun 7 | . 14 3 Ballistic Cannon 4 | . . 7 Naked Turns . | . . . Heaviest Build 26 | 14 14 26 Greatest Support 32 | 32 32 32 Greatest Overweight (x) 8 | 2 . 8 Average Overweight (x) . | . . . Largest Inventory Capacity 10 | 8 8 10 Average Capacity 8 | 7 8 9 Most Carried 10 | 8 8 10 Average Carried 7 | 5 7 7 Final Capacity 10 | 8 8 10 Final Carried 10 | 8 8 10 Class Distribution -------------------- 50% | Scavenger-Mutant 49% | Mutant Dominant Class ---------------- Mutant | -10/Materials Scavenger-Mutant | -9/Materials Resources | -11 -10 -9 ----------- Run | Yrd Mat Mat Matter Collected 623 | 275 79 269 Remotely . | . . . Salvage Created 1182 | 101 338 743 Parts 73 | 12 16 45 Haulers Intercepted 1 | . . 1 Recyclers Shooed 4 | . . 4 Parts Field Recycled . | . . . Retrieved Matter . | . . . Parts Self-Destructed . | . . . Prevented . | . . . Kills | -11 -10 -9 ------- Run | Yrd Mat Mat Combat Hostiles Destroyed 20 | . 7 13 Guns 17 | . 7 10 Cannons 3 | . . 3 Classes Destroyed 9 | 2 3 4 Builder 2 | . . 2 Tunneler 3 | 3 . . Hauler 1 | . . 1 Recycler 5 | 1 1 3 Mechanic 1 | . . 1 Watcher 2 | . 1 1 Swarmer 9 | . 3 6 Grunt 9 | . 4 5 Sentry 2 | . . 2 Best Kill Streak 11 | 2 3 11 Combat Bots Only 11 | . 3 11 Max Kills in Single Turn 2 | 2 2 2 Gunslinging 1 | . 1 . Exploded . | . . . Melee . | . . . Uniques/NPCs Destroyed . | . . . Combat | -11 -10 -9 -------- Run | Yrd Mat Mat Hostile Shots Fired 155 | . 53 102 Missed 48 | . 10 38 Damage Taken 1196 | . 448 748 Core 347 | . 130 217 Absorbed by Shields . | . . . Core Remaining (%) 74 | 100 48 . Volleys Fired 100 | 5 42 53 Largest 2 | 2 2 2 Hottest 100 | 70 70 100 Shots Fired 200 | 10 84 106 Gun 169 | 10 84 75 Cannon 31 | . . 31 Launcher . | . . . Special . | . . . Kinetic 100 | 5 42 53 Thermal 100 | 5 42 53 Explosive . | . . . Electromagnetic . | . . . Robot Hit Streak 10 | 5 10 10 Robot Miss Streak 6 | 1 6 3 Penetration Max . | . . . Secondary Targets 2 | . 2 . Max Gunslinging Chain 1 | . 1 . Shots Hit Robots 114 | 6 47 61 Core Hits 51 | 5 18 28 Critical Kills . | . . . Critical Parts Destroyed . | . . . Critical Strikes 3 | . 1 2 Burn 3 | . 1 2 Melee Attacks . | . . . Impact . | . . . Slashing . | . . . Piercing . | . . . Sneak Attacks . | . . . Combat Hostiles . | . . . Follow-up Attacks . | . . . Damage Inflicted 1475 | 83 526 866 Guns 1141 | 83 526 532 Cannons 329 | . . 329 Explosions . | . . . Melee . | . . . Ramming 5 | . . 5 Kinetic 656 | 20 192 444 Thermal 814 | 63 334 417 Explosive . | . . . Electromagnetic . | . . . Impact . | . . . Slashing . | . . . Piercing . | . . . Highest Corruption . | . . . Average Corruption . | . . . Corruption Purged . | . . . Corruption Blocked . | . . . Overload Shots . | . . . Overflow Damage 4 | . . 4 Projectiles 4 | . . 4 Explosions . | . . . Melee . | . . . Knockbacks 5 | . . 5 Impact . | . . . Kinetic 5 | . . 5 Secondary . | . . . Self-Inflicted Damage 2 | . . 2 Shots . | . . . Rammed 1 | . . 1 Targets Rammed 1 | . . 1 Kicked . | . . . Crushed . | . . . Highest Temperature 273 | 40 273 25 Average Temperature 69 | 22 94 7 Received Heat Transfer 450 | . 207 243 Effects 1 | . 1 . Energy Bleed 1 | . 1 . Siege Activations . | . . . Robots Corrupted . | . . . Combat Hostiles . | . . . Parts Fried . | . . . Impact Corruptions . | . . . Robots Melted . | . . . Combat Hostiles . | . . . Parts Melted 3 | . 2 1 Heat Transferred 2405 | 185 999 1221 Parts Sabotaged . | . . . Parts Stolen . | . . . Parts Stripped . | . . . Power Chain Reactions . | . . . Alert | -11 -10 -9 ------- Run | Yrd Mat Mat Peak Influence 400 | 20 178 400 Initial 40 | . 13 40 Average 148 | 7 88 223 Maximum Alert Level 2 | . . 2 Low Security (%) 60 | 100 100 21 Level 1 38 | . . 76 Level 2 1 | . . 2 Level 3 . | . . . Level 4 . | . . . Level 5 . | . . . High Security . | . . . Max Security . | . . . Squads Dispatched 1 | . 1 . Investigation . | . . . Extermination . | . . . Reinforcement 1 | . 1 . Assault . | . . . Garrison . | . . . Intercept . | . . . Searches Triggered . | . . . Construction Impeded . | . . . Haulers Reinforced . | . . . Active Scanning Responses . | . . . Cargo Convoy Interrupts . | . . . Stealth | -11 -10 -9 --------- Run | Yrd Mat Mat Distress Signals 3 | . 2 1 Communications Jammed . | . . . Distress Signals . | . . . Times Spotted 42 | . 12 30 Peak Tracking Total 11 | . 4 11 Tactical Retreats 2 | . . 2 Traps | -11 -10 -9 ------- Run | Yrd Mat Mat Traps Triggered . | . . . Indirectly . | . . . Trap Hack Attempts . | . . . Triggered . | . . . Disarmed . | . . . Reprogrammed . | . . . Reused . | . . . Traps Extracted . | . . . Installed . | . . . Triggered . | . . . Machines | -11 -10 -9 ---------- Run | Yrd Mat Mat Machines Disabled . | . . . Max in Single Turn . | . . . Machines Repaired . | . . . Machines Dismantled . | . . . Machines Sabotaged . | . . . Overloaded Fab Kills . | . . . Hacking | -11 -10 -9 --------- Run | Yrd Mat Mat Machines Accessed 8 | . 6 2 Terminals 6 | . 5 1 Fabricators . | . . . Repair Stations . | . . . Recycling Units 2 | . 1 1 Scanalyzers . | . . . Garrison Access . | . . . Total Hacks 34 | . 27 7 Successful 21 | . 19 2 Failed 13 | . 8 5 Catastrophic 1 | . 1 . Database Lockouts . | . . . Manual 28 | . 21 7 Terminals 26 | . 24 2 Fabricators . | . . . Repair Stations . | . . . Recycling Units 8 | . 3 5 Scanalyzers . | . . . Garrison Access . | . . . Terminal Hacks 9 | . 9 . Record 1 | . 1 . Robot Analysis 5 | . 5 . Prototype ID Bank 1 | . 1 . Alert Level 1 | . 1 . Unreport Threat 1 | . 1 . Fabricator Hacks . | . . . Repair Station Hacks . | . . . Recycling Unit Hacks 2 | . 2 . Report Inventory 1 | . 1 . Retrieve Components 1 | . 1 . Scanalyzer . | . . . Garrison Access Hacks . | . . . Unauthorized Hacks 10 | . 8 2 Terminals 8 | . 7 1 Assimilate 1 | . 1 . Botnet 6 | . 5 1 Operators 1 | . 1 . Fabricators . | . . . Repair Stations . | . . . Recycling Units 2 | . 1 1 Reject 2 | . 1 1 Scanalyzers . | . . . Garrison Access . | . . . Data Cores Recovered . | . . . Used . | . . . Hacking Detections 7 | . 5 2 Full Trace Events . | . . . Feedback Events . | . . . Feedback Blocked . | . . . Robot Schematics Acquired . | . . . Robots Built . | . . . Authchips . | . . . Time . | . . . Total Robot Build Rating . | . . . Part Schematics Acquired . | . . . Parts Built . | . . . Authchips . | . . . Time . | . . . Total Part Build Rating . | . . . Parts Repaired . | . . . Time . | . . . Parts Recycled . | . . . Recycled Matter . | . . . Retrieved Matter . | . . . Retrieved Components 5 | . 5 . Parts Scanalyzed . | . . . Part Schematics Acquired . | . . . Parts Damaged . | . . . Bothacking | -11 -10 -9 ------------ Run | Yrd Mat Mat Used RIF Installer . | . . . Robots Hacked . | . . . Non-combat . | . . . Combat . | . . . Robot Hacks Applied . | . . . Relay Couplers Released . | . . . Fabnet Peak Effective % . | . . . Robots Rewired . | . . . Allies Hacked . | . . . Hacks Repelled . | . . . Allies | -11 -10 -9 -------- Run | Yrd Mat Mat Total Allies . | . . . Largest Group . | . . . Highest-Rated Group . | . . . Highest-Rated Ally . | . . . Total Orders . | . . . Ally Attacks . | . . . Total Damage . | . . . Kills . | . . . Allies Corrupted . | . . . Allies Melted . | . . . Intel | -11 -10 -9 ------- Run | Yrd Mat Mat Robot Analysis Total 4 | . 4 . Derelict Logs Recovered . | . . . Drone Launches . | . . . Drone Recoveries . | . . . Exploration | -11 -10 -9 ------------- Run | Yrd Mat Mat Turns Passed 1255 | 125 497 633 Spaces Moved 814 | 97 342 375 Core 21 | 18 . 3 Treads . | . . . Legs . | . . . Wheels 575 | 79 342 154 Hover 218 | . . 218 Flight . | . . . Fastest Speed 50 | 50 100 90 Average Speed 106 | 92 100 116 Slowest Speed 450 | 150 100 450 Overloaded Moves . | . . . Propulsion Burnouts . | . . . Robots Hopped . | . . . Cave-ins Triggered . | . . . Exploration Rate (%) 30 | 4 59 27 Regions Visited 2 Branch Regions . Pre-discovered Areas . | . . . Known Exits Taken . | . . . Unknown Exits Taken 2 | 1 1 . Scrap Searched . | . . . Spaces Dug . | . . . Terrain Destroyed . | . . . Melee . | . . . Projectile . | . . . AOE . | . . . Terrain Rammed . | . . . Walls Destroyed . | . . . Machines Disabled . | . . . Actions | -11 -10 -9 --------- Run | Yrd Mat Mat Total 1011 | 120 424 467 Wait 31 | . 26 5 Move 812 | 96 341 375 Hop . | . . . Pick Up 22 | 10 4 8 Fast Attach 15 | 7 1 7 Attach 8 | . 1 7 Detach 3 | . . 3 Swap 6 | . 3 3 Drop 13 | 2 6 5 Fire 100 | 5 42 53 Melee . | . . . Ram 1 | . . 1 Kick . | . . . Crush . | . . . Escape Stasis . | . . . Rewire . | . . . Trap . | . . . Miscellaneous . | . . . Route ------- -11/Scrapyard -10/Materials (discovered 3 exits: *Mat x2 / [*Min]) -9/Materials (discovered 1 exit: [*Min]) History --------- Turn | Location | Event 7 | -11/Scrapyard | Discovered new exit (range 15) 126 | -11/Scrapyard | Entered Materials 317 | -10/Materials | Build established: Mutant 442 | -10/Materials | Discovered new exit (range 5) 546 | -10/Materials | Core integrity fell below 50% 564 | -10/Materials | Discovered new exit (range 3) 583 | -10/Materials | Discovered new exit (range 16) 623 | -10/Materials | Entered another Materials area 623 | -9/Materials | Evolved 2 slots: Utility x2 835 | -9/Materials | Destroyed 11 combat bots 840 | -9/Materials | Lost 8 parts (2p3n1u2w) 926 | -9/Materials | Build established: Scavenger-Mutant 1142 | -9/Materials | Discovered new exit (range 8) 1243 | -9/Materials | Core integrity fell below 50% 1256 | -9/Materials | Self-destructed Last Messages --------------- 01098_ Acquired Visual Processing Unit. 01101_ Acquired 10 matter. 01105_ Dropped Heat Sink. 01109_ Acquired 1 matter. 01110_ Acquired 9 matter. 01118_ K-01 Serf collects debris. 01142_ EXIT=FOUND 01150_ Discarded Visual Processing Unit. 01169_ K-01 Serf cleans the Machine. 01177_ K-01 Serf cleans the Nuclear Reactor. 01181_ K-01 Serf cleans the Machine. 01200_ Connecting with Terminal... >>Trojan(Botnet) Trojan loaded successfully. Testing... Terminal linked with 0 systems. Awaiting botnet instructions. 01231_ W-16 Scout sends out distress signal. 01245_ Slammed into K-01 Serf. Map ----- +----------------------------------------------------+ | ?????##### ######## ##########???????????????? | | ?????#####+######### ###########???????????????? | | ?????## # ##??#######???????????????? | | ?????## """ """ + ##?### !!##???????????????? | | ?????## """ """ #^ ###### !!##???????????????? | | ?????## """ """ # ###### !!##???????????????? | | ?????## # !##???????????????? | | ?????############### ]]##???????????????? | | ?????############### ]]##???????????????? | | ?????????################ ######???????????????? | | ?????????## ###### ######???????????????? | | ?????????## """"" ###""" ##??????????????????? | | ?????????## """"" ###" ##??????????????????? | | ?????????## """"" ###"| ##??????????????????? | | ?????????## ###"" < ##??????????????????? | | ?????????## """ ###"| ##??????????????????? | | ?????????## T" ###" ##??????????????????? | | ?????????## """ ###""" ########????????????? | | ?????????## ###### #########????????????? | | ?????????######+#+####### # """ ##????????????? | | ?????????###### + """ ##????????????? | | ??????######### # """ ##????????????? | | ??????######### # ##????????????? | | ??????## """ # ####### # + ????????????? | | ??????## """ # # # # ! ##????????????? | | ??????## """ + + #@ #########????????????? | | ??????## # # + ###????????????? | | ??????## # # # ##### ##???????? | | ??????## # # ## ##### ##???????? | | ??????######+## # ## k s ##???????? | | ???### #### + ## s s ##???????? | | ???##! #### #####/#####g### ##???????? | | ???##! #### ###g### ##?? | | ???##! ########+#####[[[ ### ### ##?? | | ???## ? ##### #[[ # # ? ##?? | | ???###????????? ?? #[[ # # ???? ???? | | ?????????????? ? + / T ##????#######????? | | ?????????????? """? # # ##????#######????? | | ?????????????!= """ # # ##???????????????? | | ???????????##!= """ # ## ###???????????????? | | ???????????##!= """ # ## ###???????????????? | | ???????????## """ #### ## ##????????????????? | | ???????????# ####### ##????????????????? | | ???????????######?########## ##????????????????? | | ???????????######?#####??? ????????????????? | | ??????????????????????????? ????????????????? | | ?????????????????????????? # ??????????????? | | ?????????????????????????? + ??????????????? | | ???????????????????????? # # ??????????????? | | ???????????????????????? # # ??????????????? | +----------------------------------------------------+ Best States ------------- Heat Dissipation 48 Energy Generation 14 Energy Capacity 265 Matter Stores 300 Matter Capacity 300 Sight Range 20 Terrain Scan Range 16 Terrain Scan Density 10 Evasion (%) 50 Item Schematics ----------------- None Robot Schematics ------------------ None Fabricated ------------ Nothing Alien Tech Used ----------------- None Achievements -------------- None Challenges ------------ None Game ------ Seed EtherialHypervelocityFlamer Manual? 0 Play Time 00:14:31 Cumulative 163.9 hours Start 2024.04.12 @ 15:00:28 End 2024.04.13 @ 01:46:04 Sessions 2 Manual Loads 0 Difficulty Rogue Special Mode None Game No. 157 Rogue 157 Adventurer 0 Explorer 0 Win Type - Total 0 Types 0/0/0/0/0/0/0/0/0 Lore% 53 Gallery% 64 Achievement% 44 Wizard Run 0 Options --------- Layout 2 ASCII 1 Keyboard 1 Movement Numpad Keybinds 0 Fullscreen 2 Font 32/TamsynBold Map View 50x44 Zoom Use 0% Tactical HUD 1 Map Filters NONE Filters NONE Steam 1 RUN: 65776add-d7f0-4e9b-b0a6-6694a733e888